[Event "NJSK 2024 B"]
[Site "Groningen, Netherlands"]
[Date "2024.04.27"]
[Round "1.1"]
[White "Smeets, Kobe"]
[Black "Krylov, Philippe"]
[Result "1-0"]
[TimeControl "90min/40moves + 30min + 30sec/move"]
[WhiteElo "2274"]
[BlackElo "2007"]

1. e4 {[%clk 01:30:58]} {[%emt 00:00:02]} c6 {[%clk 01:30:52]} {[%emt
00:00:09]} 2. d4 {[%clk 01:31:22]} {[%emt 00:00:05]} d5 {[%clk 01:31:16]}
{[%emt 00:00:05]} 3. Nc3 {[%clk 01:31:48]} {[%emt 00:00:04]} dxe4 {[%clk
01:31:42]} {[%emt 00:00:04]} 4. Nxe4 {[%clk 01:32:12]} {[%emt 00:00:06]} Bf5
{[%clk 01:32:07]} {[%emt 00:00:05]} 5. Ng3 {[%clk 01:32:35]} {[%emt 00:00:07]}
Bg6 {[%clk 01:32:31]} {[%emt 00:00:06]} 6. N1e2 {[%clk 01:32:56]} {[%emt
00:00:09]} Nd7 {[%clk 01:20:11]} {[%emt 00:12:50]} 7. h4 {[%clk 01:21:11]}
{[%emt 00:12:14]} h6 {[%clk 01:18:33]} {[%emt 00:02:09]} 8. Nf4 {[%clk
01:21:33]} {[%emt 00:00:09]} Bh7 {[%clk 01:18:36]} {[%emt 00:00:26]} 9. Bc4
{[%clk 01:18:48]} {[%emt 00:03:15]} Ngf6 {[%clk 01:12:32]} {[%emt 00:06:35]} 10.
O-O {[%clk 01:18:53]} {[%emt 00:00:25]} Nb6 {[%clk 01:01:56]} {[%emt 00:11:06]}
11. Bb3 {[%clk 01:17:06]} {[%emt 00:02:16]} Nbd5 {[%emt 00:01:36]} 12. Nxd5
{[%clk 01:07:28]} {[%emt 00:10:07]} Nxd5 {[%clk 01:01:06]} {[%emt 00:00:16]} 13.
c4 {[%clk 01:06:37]} {[%emt 00:01:21]} Nb6 {[%clk 00:46:04]} {[%emt 00:15:32]}
14. d5 {[%clk 00:57:28]} {[%emt 00:09:38]} Qd6 {[%clk 00:33:28]} {[%emt
00:13:07]} 15. Be3 {[%clk 00:46:41]} {[%emt 00:11:17]} Nd7 {[%clk 00:31:00]}
{[%emt 00:02:58]} 16. Rc1 {[%clk 00:42:03]} {[%emt 00:05:07]} Nf6 {[%clk
00:13:25]} {[%emt 00:18:05]} 17. dxc6 {[%clk 00:31:08]} {[%emt 00:11:25]} bxc6
{[%clk 00:13:33]} {[%emt 00:00:22]} 18. Ba4 {[%clk 00:30:19]} {[%emt 00:01:18]}
Qc7 {[%clk 00:11:23]} {[%emt 00:02:40]} 19. Bf4 {[%clk 00:29:00]} {[%emt
00:01:48]} Qb7 {[%clk 00:07:00]} {[%emt 00:04:54]} 20. Qf3 {[%clk 00:23:56]}
{[%emt 00:05:33]} Rc8 {[%clk 00:07:29]} {[%emt 00:00:01]} 21. Rc3 {[%clk
00:20:12]} {[%emt 00:04:14]} Qa6 {[%clk 00:05:32]} {[%emt 00:02:28]} 22. Ra3
{[%clk 00:13:41]} {[%emt 00:07:01]} e6 {[%clk 00:03:44]} {[%emt 00:02:18]} 23.
Bb5 {[%clk 00:13:25]} {[%emt 00:00:46]} Qb7 {[%clk 00:01:43]} {[%emt 00:02:31]}
24. Ba6 {[%clk 00:13:47]} {[%emt 00:00:07]} Qa8 {[%clk 00:01:03]} {[%emt
00:01:11]} 25. Rb3 {[%clk 00:14:08]} {[%emt 00:00:08]} Rd8 {[%clk 00:00:41]}
{[%emt 00:00:52]} 26. Bb7 {[%clk 00:14:29]} {[%emt 00:00:09]} 1-0

[Event "NJSK 2024 B"]
[Site "Groningen, Netherlands"]
[Date "2024.04.27"]
[Round "1.2"]
[White "Roolvink, William"]
[Black "Kumar, Prajit Sai"]
[Result "1-0"]
[TimeControl "90min/40moves + 30min + 30sec/move"]
[WhiteElo "1966"]
[BlackElo "2211"]

1. e4 {[%clk 01:30:57]} {[%emt 00:00:02]} c5 {[%clk 01:30:29]} {[%emt
00:00:31]} 2. Nc3 {[%clk 01:31:25]} {[%emt 00:00:02]} Nc6 {[%clk 01:28:44]}
{[%emt 00:02:15]} 3. Bb5 {[%clk 01:29:24]} {[%emt 00:02:31]} Nd4 {[%clk
01:29:06]} {[%emt 00:00:08]} 4. Nf3 {[%clk 01:29:52]} {[%emt 00:00:02]} a6
{[%clk 01:29:01]} {[%emt 00:00:35]} 5. Bd3 {[%clk 01:30:06]} {[%emt 00:00:15]}
e6 {[%clk 01:28:52]} {[%emt 00:00:39]} 6. O-O {[%clk 01:22:44]} {[%emt
00:07:52]} Nc6 {[%clk 01:27:34]} {[%emt 00:01:47]} 7. Nd5 {[%clk 01:22:38]}
{[%emt 00:00:37]} Bd6 {[%clk 01:16:30]} {[%emt 00:11:33]} 8. Ne3 {[%clk
01:20:55]} {[%emt 00:02:13]} Bc7 {[%clk 01:03:56]} {[%emt 00:13:05]} 9. c3
{[%clk 01:09:44]} {[%emt 00:11:41]} Nf6 {[%clk 01:00:13]} {[%emt 00:04:13]} 10.
Bc2 {[%clk 01:06:52]} {[%emt 00:03:21]} d5 {[%clk 00:58:57]} {[%emt 00:01:46]}
11. exd5 {[%clk 01:06:43]} {[%emt 00:00:40]} exd5 {[%clk 00:59:09]} {[%emt
00:00:16]} 12. d4 {[%clk 01:06:33]} {[%emt 00:00:40]} cxd4 {[%clk 00:59:02]}
{[%emt 00:00:38]} 13. Nxd4 {[%clk 01:06:33]} {[%emt 00:00:30]} O-O {[%clk
00:58:49]} {[%emt 00:00:43]} 14. Nef5 {[%clk 00:55:16]} {[%emt 00:11:47]} Ne5
{[%clk 00:43:26]} {[%emt 00:15:53]} 15. Bg5 {[%clk 00:49:39]} {[%emt 00:06:06]}
Ng6 {[%clk 00:32:56]} {[%emt 00:11:01]} 16. Qf3 {[%clk 00:43:33]} {[%emt
00:06:36]} Be5 {[%clk 00:25:06]} {[%emt 00:08:20]} 17. Rfe1 {[%clk 00:38:11]}
{[%emt 00:05:51]} Bxf5 {[%clk 00:12:16]} {[%emt 00:13:21]} 18. Nxf5 {[%clk
00:35:21]} {[%emt 00:03:20]} Re8 {[%clk 00:09:27]} {[%emt 00:03:19]} 19. Rad1
{[%clk 00:32:13]} {[%emt 00:03:38]} Qb6 {[%clk 00:05:51]} {[%emt 00:04:06]} 20.
Bb3 {[%clk 00:25:56]} {[%emt 00:06:48]} Rad8 {[%clk 00:06:07]} {[%emt
00:00:14]} 21. Bxf6 {[%clk 00:13:36]} {[%emt 00:12:50]} Qxf6 {[%clk 00:03:34]}
{[%emt 00:03:03]} 22. Bxd5 {[%clk 00:12:23]} {[%emt 00:01:43]} b5 {[%clk
00:02:22]} {[%emt 00:01:42]} 23. g3 {[%clk 00:07:07]} {[%emt 00:05:45]} h6
{[%clk 00:01:35]} {[%emt 00:01:18]} 24. h4 {[%clk 00:04:34]} {[%emt 00:03:03]}
Kh8 {[%clk 00:01:07]} {[%emt 00:00:58]} 25. Qe4 {[%clk 00:03:46]} {[%emt
00:01:18]} Bc7 {[%clk 00:00:48]} {[%emt 00:00:49]} 26. Qxe8+ {[%clk 00:03:24]}
{[%emt 00:00:51]} Rxe8 {[%clk 00:01:18]} 27. Rxe8+ {[%clk 00:03:53]} {[%emt
00:00:02]} Kh7 {[%clk 00:01:41]} {[%emt 00:00:07]} 28. Be4 {[%clk 00:01:57]}
{[%emt 00:02:25]} h5 {[%clk 00:01:27]} {[%emt 00:00:44]} 29. Rd7 {[%clk
00:01:41]} {[%emt 00:00:47]} Be5 {[%clk 00:00:50]} {[%emt 00:01:07]} 30. Rdd8
{[%clk 00:01:00]} {[%emt 00:01:10]} Bc7 {[%clk 00:00:50]} {[%emt 00:00:30]} 31.
Rc8 {[%clk 00:01:02]} {[%emt 00:00:29]} Bf4 {[%clk 00:00:37]} {[%emt 00:00:43]}
32. Rc6 {[%clk 00:00:58]} {[%emt 00:00:35]} Bd6 {[%clk 00:00:36]} {[%emt
00:00:31]} 33. Rxd6 {[%clk 00:01:14]} {[%emt 00:00:13]} 1-0

[Event "NJSK 2024 B"]
[Site "Groningen, Netherlands"]
[Date "2024.04.27"]
[Round "1.3"]
[White "Kazarjan, Gachatur"]
[Black "Kshirsagar, Pranav"]
[Result "1-0"]
[TimeControl "90min/40moves + 30min + 30sec/move"]
[WhiteElo "2203"]
[BlackElo "1957"]

1. e4 {[%clk 01:30:58]} {[%emt 00:00:02]} c6 {[%clk 01:30:56]} {[%emt
00:00:04]} 2. d4 {[%clk 01:31:22]} {[%emt 00:00:06]} d5 {[%clk 01:31:21]}
{[%emt 00:00:05]} 3. Nd2 {[%clk 01:31:48]} {[%emt 00:00:05]} dxe4 {[%clk
01:31:40]} {[%emt 00:00:10]} 4. Nxe4 {[%clk 01:32:11]} {[%emt 00:00:07]} Nf6
{[%clk 01:31:56]} {[%emt 00:00:14]} 5. Nxf6+ {[%clk 01:32:31]} {[%emt
00:00:10]} exf6 {[%clk 01:32:20]} {[%emt 00:00:05]} 6. c3 {[%clk 01:32:57]}
{[%emt 00:00:05]} Bd6 {[%clk 01:32:21]} {[%emt 00:00:29]} 7. Bd3 {[%clk
01:33:21]} {[%emt 00:00:05]} O-O {[%clk 01:32:26]} {[%emt 00:00:25]} 8. Qc2
{[%clk 01:33:47]} {[%emt 00:00:05]} Re8+ {[%clk 01:32:09]} {[%emt 00:00:47]} 9.
Ne2 {[%clk 01:34:04]} {[%emt 00:00:13]} h6 {[%clk 01:32:06]} {[%emt 00:00:33]}
10. Be3 {[%clk 01:34:24]} {[%emt 00:00:10]} Be6 {[%clk 01:28:37]} {[%emt
00:03:59]} 11. c4 {[%clk 01:27:42]} {[%emt 00:07:12]} Nd7 {[%clk 01:25:51]}
{[%emt 00:03:16]} 12. Nc3 {[%clk 01:21:02]} {[%emt 00:07:10]} Qa5 {[%clk
01:08:54]} {[%emt 00:17:27]} 13. h3 {[%clk 01:09:12]} {[%emt 00:12:19]} Nf8
{[%clk 01:05:08]} {[%emt 00:04:16]} 14. c5 {[%clk 00:36:01]} {[%emt 00:33:41]}
Bf4 {[%clk 00:50:35]} {[%emt 00:15:02]} 15. O-O {[%clk 00:33:13]} {[%emt
00:03:17]} Bxe3 {[%clk 00:49:12]} {[%emt 00:01:55]} 16. fxe3 {[%clk 00:33:34]}
{[%emt 00:00:08]} Qc7 {[%clk 00:28:01]} {[%emt 00:21:40]} 17. Qf2 {[%clk
00:30:07]} {[%emt 00:03:58]} b6 {[%clk 00:22:15]} {[%emt 00:06:17]} 18. b4
{[%clk 00:29:09]} {[%emt 00:01:28]} bxc5 {[%clk 00:19:30]} {[%emt 00:03:14]} 19.
bxc5 {[%clk 00:29:21]} {[%emt 00:00:16]} Qa5 {[%clk 00:18:48]} {[%emt
00:01:14]} 20. Ne4 {[%clk 00:27:07]} {[%emt 00:02:43]} Qa3 {[%clk 00:16:40]}
{[%emt 00:02:38]} 21. Rad1 {[%clk 00:24:05]} {[%emt 00:03:33]} Nd7 {[%clk
00:12:16]} {[%emt 00:04:54]} 22. Nd6 {[%clk 00:22:04]} {[%emt 00:02:31]} Re7
{[%clk 00:11:52]} {[%emt 00:00:54]} 23. Be4 {[%clk 00:16:27]} {[%emt 00:06:06]}
Bd5 {[%clk 00:04:55]} {[%emt 00:07:28]} 24. Bxd5 {[%clk 00:14:07]} {[%emt
00:02:50]} cxd5 {[%clk 00:05:23]} {[%emt 00:00:02]} 25. Nf5 {[%clk 00:13:35]}
{[%emt 00:01:01]} Re6 {[%clk 00:05:37]} {[%emt 00:00:17]} 26. Qg3 {[%clk
00:10:24]} {[%emt 00:03:41]} g6 {[%clk 00:04:30]} {[%emt 00:01:37]} 27. Rde1
{[%clk 00:10:14]} {[%emt 00:00:39]} Kh7 {[%clk 00:02:38]} {[%emt 00:02:22]} 28.
Qc7 {[%clk 00:08:35]} {[%emt 00:02:09]} Qa4 {[%clk 00:02:04]} {[%emt 00:01:04]}
29. Nd6 {[%clk 00:08:49]} {[%emt 00:00:16]} Kg7 {[%clk 00:01:32]} {[%emt
00:01:02]} 30. c6 {[%clk 00:08:05]} {[%emt 00:01:13]} Qa3 {[%clk 00:01:04]}
{[%emt 00:00:58]} 31. Nb5 {[%clk 00:08:13]} {[%emt 00:00:22]} Qa6 {[%clk
00:00:45]} {[%emt 00:00:50]} 32. cxd7 {[%clk 00:07:38]} {[%emt 00:01:04]} Qb6
{[%clk 00:00:59]} {[%emt 00:00:16]} 33. Qxb6 {[%clk 00:04:19]} {[%emt
00:03:49]} Rxb6 {[%clk 00:01:22]} {[%emt 00:00:07]} 34. Nc7 {[%clk 00:04:41]}
{[%emt 00:00:08]} Rd8 {[%clk 00:01:13]} {[%emt 00:00:39]} 35. Ne8+ {[%clk
00:04:55]} {[%emt 00:00:16]} Kf8 {[%clk 00:01:05]} {[%emt 00:00:38]} 36. Nxf6
{[%clk 00:05:13]} {[%emt 00:00:11]} Rd6 {[%clk 00:01:20]} {[%emt 00:00:16]} 37.
e4 {[%clk 00:05:31]} {[%emt 00:00:12]} dxe4 {[%clk 00:00:59]} {[%emt 00:00:51]}
38. Rxe4 {[%clk 00:04:46]} {[%emt 00:01:15]} R6xd7 {[%clk 00:01:07]} {[%emt
00:00:22]} 39. Nxd7+ {[%clk 00:05:06]} {[%emt 00:00:09]} Rxd7 {[%clk 00:01:33]}
{[%emt 00:00:05]} 40. Rf6 {[%clk 00:05:21]} {[%emt 00:00:15]} Kg7 {[%clk
00:01:48]} {[%emt 00:00:15]} 41. Ra6 {[%clk 00:05:35]} {[%emt 00:00:16]} Kf8
{[%clk 00:01:49]} {[%emt 00:00:29]} 42. Kf2 {[%clk 00:05:50]} {[%emt 00:00:15]}
Kg7 {[%clk 00:02:05]} {[%emt 00:00:14]} 43. Ke3 {[%clk 00:06:06]} {[%emt
00:00:14]} g5 {[%clk 00:02:25]} {[%emt 00:00:11]} 44. Re5 {[%clk 00:06:24]}
{[%emt 00:00:12]} Kh7 {[%clk 00:02:21]} {[%emt 00:00:33]} 45. d5 {[%clk
00:06:43]} {[%emt 00:00:12]} Kg7 {[%clk 00:02:45]} {[%emt 00:00:06]} 46. d6
{[%clk 00:07:04]} {[%emt 00:00:09]} Kf6 {[%clk 00:02:56]} {[%emt 00:00:19]} 47.
Re7 {[%clk 00:07:27]} {[%emt 00:00:07]} 1-0

[Event "NJSK 2024 B"]
[Site "Groningen, Netherlands"]
[Date "2024.04.27"]
[Round "1.4"]
[White "Ponomarev, Ivan"]
[Black "Arnold, Rhys"]
[Result "0-1"]
[TimeControl "90min/40moves + 30min + 30sec/move"]
[WhiteElo "1924"]
[BlackElo "2185"]

1. c4 {[%clk 01:30:59]} e6 {[%clk 01:29:46]} {[%emt 00:01:15]} 2. d4 {[%clk
01:31:04]} {[%emt 00:00:25]} d5 {[%clk 01:30:11]} {[%emt 00:00:04]} 3. Nc3
{[%clk 01:31:21]} {[%emt 00:00:14]} Nf6 {[%clk 01:30:20]} {[%emt 00:00:21]} 4.
Nf3 {[%clk 01:31:35]} {[%emt 00:00:15]} a6 {[%clk 01:29:30]} {[%emt 00:01:21]}
5. e3 {[%clk 01:29:20]} {[%emt 00:02:45]} Be7 {[%clk 01:27:16]} {[%emt
00:02:43]} 6. Bd3 {[%clk 01:27:01]} {[%emt 00:02:50]} dxc4 {[%clk 01:21:39]}
{[%emt 00:06:07]} 7. Bxc4 {[%clk 01:27:24]} {[%emt 00:00:08]} c5 {[%clk
01:20:50]} {[%emt 00:01:18]} 8. O-O {[%clk 01:17:12]} {[%emt 00:10:42]} b5
{[%clk 01:17:30]} {[%emt 00:03:50]} 9. Bd3 {[%clk 01:11:03]} {[%emt 00:06:38]}
cxd4 {[%clk 01:15:34]} {[%emt 00:02:25]} 10. Nxd4 {[%clk 01:02:45]} {[%emt
00:08:49]} O-O {[%clk 01:09:30]} {[%emt 00:06:34]} 11. b3 {[%clk 00:52:08]}
{[%emt 00:11:07]} Bb7 {[%clk 01:03:53]} {[%emt 00:06:07]} 12. Bb2 {[%clk
00:51:36]} {[%emt 00:01:03]} Nbd7 {[%clk 01:02:57]} {[%emt 00:01:25]} 13. Rc1
{[%clk 00:46:59]} {[%emt 00:05:07]} Bc5 {[%clk 00:56:12]} {[%emt 00:07:15]} 14.
Bb1 {[%clk 00:42:31]} {[%emt 00:04:57]} Qe7 {[%clk 00:50:56]} {[%emt 00:05:46]}
15. Qe2 {[%clk 00:22:57]} {[%emt 00:20:04]} Bxd4 {[%clk 00:46:42]} {[%emt
00:04:44]} 16. exd4 {[%clk 00:23:26]} {[%emt 00:00:01]} Nb6 {[%clk 00:44:40]}
{[%emt 00:02:32]} 17. Rfd1 {[%clk 00:20:15]} {[%emt 00:03:41]} Nbd5 {[%clk
00:42:18]} {[%emt 00:02:52]} 18. Nxd5 {[%clk 00:19:57]} {[%emt 00:00:48]} Bxd5
{[%clk 00:42:32]} {[%emt 00:00:16]} 19. h3 {[%clk 00:18:30]} {[%emt 00:01:58]}
Qb7 {[%clk 00:41:23]} {[%emt 00:01:39]} 20. f3 {[%clk 00:15:35]} {[%emt
00:03:25]} Rac8 {[%clk 00:30:39]} {[%emt 00:11:13]} 21. Rxc8 {[%clk 00:14:59]}
{[%emt 00:01:06]} Rxc8 {[%clk 00:30:52]} {[%emt 00:00:17]} 22. Rc1 {[%clk
00:15:25]} {[%emt 00:00:04]} Rd8 {[%clk 00:29:56]} {[%emt 00:01:26]} 23. Qc2
{[%clk 00:12:59]} {[%emt 00:02:56]} g6 {[%clk 00:26:24]} {[%emt 00:04:02]} 24.
Qc7 {[%clk 00:11:38]} {[%emt 00:01:51]} Qxc7 {[%clk 00:21:51]} {[%emt
00:05:03]} 25. Rxc7 {[%clk 00:12:07]} {[%emt 00:00:01]} Ra8 {[%clk 00:19:29]}
{[%emt 00:02:52]} 26. Kf2 {[%clk 00:12:17]} {[%emt 00:00:20]} Ne8 {[%clk
00:16:54]} {[%emt 00:03:05]} 27. Rc5 {[%clk 00:09:21]} {[%emt 00:03:27]} Nd6
{[%clk 00:16:46]} {[%emt 00:00:38]} 28. Ke3 {[%clk 00:08:53]} {[%emt 00:00:57]}
Kg7 {[%clk 00:13:36]} {[%emt 00:03:40]} 29. Be4 {[%clk 00:08:01]} {[%emt
00:01:22]} Nf5+ {[%clk 00:10:33]} {[%emt 00:03:32]} 30. Bxf5 {[%clk 00:04:55]}
{[%emt 00:03:37]} gxf5 {[%clk 00:10:49]} {[%emt 00:00:14]} 31. Kf4 {[%clk
00:04:04]} {[%emt 00:01:22]} Kf6 {[%clk 00:09:31]} {[%emt 00:01:48]} 32. g4
{[%clk 00:03:28]} {[%emt 00:01:06]} fxg4 {[%clk 00:09:56]} {[%emt 00:00:05]} 33.
fxg4 {[%clk 00:03:16]} {[%emt 00:00:43]} h5 {[%clk 00:08:30]} {[%emt 00:01:56]}
34. g5+ {[%clk 00:03:06]} {[%emt 00:00:40]} Kg6 {[%clk 00:08:51]} {[%emt
00:00:08]} 35. h4 {[%clk 00:03:31]} {[%emt 00:00:05]} f6 {[%clk 00:08:59]}
{[%emt 00:00:22]} 36. gxf6 {[%clk 00:02:37]} {[%emt 00:01:24]} Rf8 {[%clk
00:08:26]} {[%emt 00:01:02]} 37. Ke5 {[%clk 00:01:27]} {[%emt 00:01:40]} Rxf6
{[%clk 00:08:50]} {[%emt 00:00:06]} 38. Rc2 {[%clk 00:00:47]} {[%emt 00:01:10]}
Rf1 {[%clk 00:07:11]} {[%emt 00:02:09]} 39. Rh2 {[%clk 00:00:57]} {[%emt
00:00:20]} a5 {[%clk 00:06:23]} {[%emt 00:01:18]} 40. Kd6 {[%clk 00:01:05]}
{[%emt 00:00:22]} a4 {[%clk 00:06:47]} {[%emt 00:00:06]} 41. bxa4 {[%clk
00:01:11]} {[%emt 00:00:24]} bxa4 {[%clk 00:07:12]} {[%emt 00:00:05]} 42. a3
{[%clk 00:01:21]} {[%emt 00:00:20]} Kf5 {[%clk 00:07:36]} {[%emt 00:00:06]} 43.
Kc5 {[%clk 00:16:37]} {[%emt 00:15:14]} Kg4 {[%clk 00:37:51]} {[%emt 00:00:14]}
44. Kb4 {[%clk 00:16:29]} {[%emt 00:00:39]} Kg3 {[%clk 00:35:59]} {[%emt
00:02:21]} 45. Re2 {[%clk 00:15:19]} {[%emt 00:01:40]} Kxh4 {[%clk 00:36:16]}
{[%emt 00:00:12]} 46. Kxa4 {[%clk 00:15:17]} {[%emt 00:00:33]} Kg3 {[%clk
00:33:40]} {[%emt 00:03:06]} 47. Bc3 {[%clk 00:10:37]} {[%emt 00:05:10]} h4
{[%clk 00:31:09]} {[%emt 00:03:00]} 48. Bb4 {[%clk 00:10:37]} {[%emt 00:00:30]}
h3 {[%clk 00:25:24]} {[%emt 00:06:15]} 49. Bd6+ {[%clk 00:11:05]} {[%emt
00:00:02]} Kg4 {[%clk 00:25:32]} {[%emt 00:00:21]} 50. Be5 {[%clk 00:09:18]}
{[%emt 00:02:18]} Rb1 {[%clk 00:17:59]} {[%emt 00:08:02]} 51. Ka5 {[%clk
00:08:13]} {[%emt 00:01:34]} Bc4 {[%clk 00:07:47]} {[%emt 00:10:43]} 52. Rf2
{[%clk 00:04:41]} {[%emt 00:04:02]} Rb5+ {[%clk 00:05:48]} {[%emt 00:02:29]} 53.
Ka4 {[%clk 00:05:10]} {[%emt 00:00:01]} Rxe5 {[%clk 00:04:57]} {[%emt
00:01:21]} 54. dxe5 {[%clk 00:05:39]} {[%emt 00:00:01]} Kg3 {[%clk 00:05:13]}
{[%emt 00:00:13]} 55. Rf8 {[%clk 00:04:31]} {[%emt 00:01:38]} h2 {[%clk
00:05:14]} {[%emt 00:00:29]} 56. Rh8 {[%clk 00:04:56]} {[%emt 00:00:05]} Bd5
{[%clk 00:05:12]} {[%emt 00:00:32]} 57. Kb5 {[%clk 00:03:44]} {[%emt 00:01:43]}
h1=Q {[%clk 00:05:21]} {[%emt 00:00:21]} 58. Rxh1 {[%clk 00:04:03]} {[%emt
00:00:10]} Bxh1 {[%clk 00:05:49]} {[%emt 00:00:02]} 0-1

[Event "NJSK 2024 B"]
[Site "Groningen, Netherlands"]
[Date "2024.04.27"]
[Round "1.5"]
[White "Van Batenburg, Mees"]
[Black "Heus, Daan"]
[Result "1-0"]
[TimeControl "90min/40moves + 30min + 30sec/move"]
[WhiteElo "2110"]
[BlackElo "1921"]

1. e4 {[%clk 01:30:16]} {[%emt 00:00:43]} e5 {[%clk 01:30:45]} {[%emt
00:00:16]} 2. Nf3 {[%clk 01:30:40]} {[%emt 00:00:05]} Nc6 {[%clk 01:31:11]}
{[%emt 00:00:05]} 3. c3 {[%clk 01:31:05]} {[%emt 00:00:04]} Nf6 {[%clk
01:31:00]} {[%emt 00:00:42]} 4. d4 {[%clk 01:31:30]} {[%emt 00:00:05]} exd4
{[%clk 01:31:17]} {[%emt 00:00:13]} 5. e5 {[%clk 01:31:53]} {[%emt 00:00:06]}
Nd5 {[%clk 01:31:42]} {[%emt 00:00:06]} 6. Bc4 {[%clk 01:32:09]} {[%emt
00:00:13]} Nb6 {[%clk 01:31:38]} {[%emt 00:00:35]} 7. Bb3 {[%clk 01:32:33]}
{[%emt 00:00:05]} dxc3 {[%clk 01:25:09]} {[%emt 00:07:00]} 8. Nxc3 {[%clk
01:32:52]} {[%emt 00:00:09]} Be7 {[%clk 01:24:49]} {[%emt 00:00:50]} 9. O-O
{[%clk 01:31:49]} {[%emt 00:01:33]} O-O {[%clk 01:23:47]} {[%emt 00:01:33]} 10.
a4 {[%clk 01:32:07]} {[%emt 00:00:12]} a5 {[%clk 01:22:06]} {[%emt 00:02:11]}
11. Be3 {[%clk 01:32:13]} {[%emt 00:00:23]} d6 {[%clk 01:20:05]} {[%emt
00:02:32]} 12. exd6 {[%clk 01:32:14]} {[%emt 00:00:29]} Bxd6 {[%clk 01:18:54]}
{[%emt 00:01:41]} 13. Nb5 {[%clk 01:27:40]} {[%emt 00:05:04]} Nd7 {[%clk
01:15:11]} {[%emt 00:04:13]} 14. Nxd6 {[%clk 01:18:42]} {[%emt 00:09:28]} cxd6
{[%clk 01:15:25]} {[%emt 00:00:15]} 15. Qd2 {[%emt 00:00:43]} d5 16. Qxd5
{[%clk 01:18:30]} Nde5 {[%clk 01:12:41]} {[%emt 00:03:14]} 17. Qxd8 {[%clk
01:08:21]} {[%emt 00:09:53]} Nxf3+ {[%clk 01:12:34]} {[%emt 00:01:22]} 18. gxf3
{[%clk 01:08:46]} {[%emt 00:00:05]} Rxd8 {[%clk 01:12:40]} {[%emt 00:00:25]} 19.
Rfd1 {[%clk 01:06:51]} {[%emt 00:02:25]} Be6 {[%clk 01:09:02]} {[%emt
00:04:08]} 20. Bxe6 {[%clk 01:04:20]} {[%emt 00:03:01]} fxe6 {[%clk 01:08:01]}
{[%emt 00:01:31]} 21. Bg5 {[%clk 00:57:30]} {[%emt 00:07:20]} Rd5 {[%clk
01:05:10]} {[%emt 00:03:22]} 22. Rxd5 {[%clk 00:50:53]} {[%emt 00:07:06]} exd5
{[%clk 01:04:02]} {[%emt 00:01:39]} 23. Ra3 {[%clk 00:47:06]} {[%emt 00:04:17]}
d4 {[%clk 00:58:23]} {[%emt 00:06:09]} 24. Rb3 {[%clk 00:44:24]} {[%emt
00:03:12]} Nb4 {[%clk 00:56:06]} {[%emt 00:02:47]} 25. Be7 {[%clk 00:40:53]}
{[%emt 00:04:01]} Rc8 {[%clk 00:48:19]} {[%emt 00:08:17]} 26. Bxb4 {[%emt
00:11:39]} axb4 {[%clk 00:44:53]} {[%emt 00:00:01]} 27. Kf1 {[%clk 00:29:01]}
{[%emt 00:05:09]} Rc1+ {[%clk 00:40:50]} {[%emt 00:04:32]} 28. Ke2 {[%clk
00:27:29]} {[%emt 00:02:02]} Rc2+ {[%clk 00:40:51]} {[%emt 00:00:29]} 29. Kd3
{[%clk 00:20:00]} {[%emt 00:07:59]} Rxf2 {[%clk 00:41:10]} {[%emt 00:00:10]} 30.
Rxb4 {[%clk 00:20:25]} {[%emt 00:00:06]} Rxf3+ {[%clk 00:41:14]} {[%emt
00:00:56]} 31. Kxd4 {[%clk 00:20:59]} {[%emt 00:00:25]} Rf4+ {[%clk 00:37:50]}
{[%emt 00:03:55]} 32. Kc5 {[%clk 00:20:19]} {[%emt 00:01:09]} Rf7 {[%clk
00:34:53]} {[%emt 00:03:26]} 33. Kb6 {[%clk 00:20:04]} {[%emt 00:00:47]} h5
{[%clk 00:34:44]} {[%emt 00:00:39]} 34. Rb5 {[%clk 00:15:02]} {[%emt 00:05:32]}
h4 {[%clk 00:33:45]} {[%emt 00:01:29]} 35. b4 {[%clk 00:14:54]} {[%emt
00:00:38]} Rf2 {[%clk 00:29:59]} {[%emt 00:04:13]} 36. Kxb7 {[%clk 00:14:13]}
{[%emt 00:01:14]} Rxh2 {[%clk 00:30:19]} {[%emt 00:00:10]} 37. a5 {[%clk
00:13:58]} {[%emt 00:00:45]} Rf2 {[%clk 00:29:27]} {[%emt 00:01:21]} 38. a6
{[%clk 00:13:18]} {[%emt 00:01:10]} h3 {[%clk 00:28:43]} {[%emt 00:01:14]} 39.
a7 {[%clk 00:11:49]} {[%emt 00:02:00]} Rf7+ {[%clk 00:28:29]} {[%emt 00:00:44]}
40. Ka6 {[%clk 00:11:53]} {[%emt 00:00:26]} 1-0